Cogmind - Beta 14 @@@ ROGUE MODE // 2024.10.12 @ 10:26:46 Player: laeb2 Result: Destroyed by G-73 Enforcer with Phase Gun Performance ------------- Evolutions (8) 4000 Regions Visited (16) 3200 Robots Destroyed (70) 350 Value Destroyed (2021) 2021 Prototype IDs (41) 820 Alien Tech Used (2) 400 Bonus (3116) 3116 TOTAL SCORE: 13907 Bonus ------- Triggered Max Security 1000 High Alert Combat Kills 66 Follower Combat Kills 802 Entered DSFs 500 Aligned with FarCom 300 Scanned by Researcher 500 Friendly Fire -52 Cogmind --------- Core Integrity 0/1450 Matter 196/300 Energy 78/100 System Corruption 13% Temperature Cool (8) Movement Core (50) Location -2/Quarantine Parts ------- > --- POWER (3) -------- (None) > --- PROPULSION (7) --- (None) > --- UTILITY (11) ----- Experimental Signal Interpreter Improved Hacking Suite > --- WEAPON (2) ------- (None) > --- INVENTORY (5) ---- Improved Reaction Control System Advanced Phase Shifter Core Cannon Advanced Remote Datajack Peak State ------------ > --- POWER ------------ Backup Power VII Light Quantum Reactor > --- PROPULSION ------- Improved VTOL Module Improved VTOL Module Improved VTOL Module Field Propulsion Drive Field Propulsion Drive Field Propulsion Drive > --- UTILITY ---------- Advanced Coolant Injector Experimental Signal Interpreter Improved Transmission Jammer Experimental Reaction Control System Graphene Brace Experimental Thermal Shield Hacking Suite Improved Hacking Suite Improved Hacking Suite System Shield Improved Corruption Screen > --- WEAPON ----------- Backup Laser VII Backup Laser VII > --- INVENTORY -------- Advanced Power Amplifier Improved Reaction Control System Advanced Phase Shifter Scatter Rocket Array Improved Plasma Cutter [Rating: 132] Favorites ----------- Power Light Deuterium Engine Engine Light Deuterium Engine Power Core Fission Core Reactor Cold Fusion Reactor Propulsion Improved VTOL Module Leg Enhanced Flexi-carbon Leg Hover Unit Gyrokinetic Inverter Flight Unit Improved VTOL Module Utility Hacking Suite Device Structural Scanner Processor Improved Signal Interpreter Hackware Hacking Suite Protection Improved Propulsion Shielding Artifact Phase Redirector Weapon Scythe Energy Gun Gatling Laser Energy Cannon EM Pulse Cannon Ballistic Gun Shotgun Ballistic Cannon Light Cannon Launcher Fusion Bomb Launcher Special Weapon Improved Remote Datajack Impact Weapon Shock Maul Slashing Weapon Scythe Special Melee Weapon Improved Datajack Build | -11 -10 -9 -9 -9 -8 -8 -7 -6 -6 -5 -4 -4 -3 -3 -2 -2 ------- Run | Yrd Mat Mat Min Exi Min Mat Fac Fac Ext Fac Fac Arm Res DSF Res Qua Slots Evolved 16 | . . 2 . . . 2 2 2 . 2 2 . 2 . 2 . Power 2 | . . . . . . . 1 . . . . . 1 . . . Propulsion 5 | . . 2 . . . . . 2 . 1 . . . . . . Utility 9 | . . . . . . 2 1 . . 1 2 . 1 . 2 . Weapon . | . . . . . . . . . . . . . . . . . Parts Attached 159 | . 7 10 1 1 6 9 3 18 12 19 20 15 2 4 19 13 Power 27 | . . 3 . . 3 1 1 3 2 3 3 3 1 . 4 . Engine 13 | . . 3 . . 1 1 . 2 1 1 2 2 . . . . Core 11 | . . . . . 2 . 1 . 1 2 1 1 . . 3 . Reactor 3 | . . . . . . . . 1 . . . . 1 . 1 . Propulsion 40 | . 2 2 . . 3 3 . 4 2 6 6 3 1 3 3 2 Treads . | . . . . . . . . . . . . . . . . . Leg 1 | . . . . . . . . . . . . . 1 . . . Wheel . | . . . . . . . . . . . . . . . . . Hover 1 | . . . . . . . . . . . . . . . 1 . Flight 38 | . 2 2 . . 3 3 . 4 2 6 6 3 . 3 2 2 Utility 57 | . 2 2 . 1 . 3 1 8 3 5 8 9 . . 10 5 Device 32 | . 1 2 . . . . . 4 1 3 7 3 . . 8 3 Storage . | . . . . . . . . . . . . . . . . . Processor 9 | . 1 . . . . 2 . . . 1 1 3 . . 1 . Hackware 11 | . . . . 1 . . 1 3 1 1 . 3 . . 1 . Protection 3 | . . . . . . 1 . 1 1 . . . . . . . Artifact 2 | . . . . . . . . . . . . . . . . 2 Weapon 35 | . 3 3 1 . . 2 1 3 5 5 3 . . 1 2 6 Energy Gun 5 | . . . . . . . . 1 2 . . . . 1 . 1 Energy Cannon 3 | . . . . . . . . . 1 1 . . . . . 1 Ballistic Gun 6 | . 2 2 . . . 1 . . . 1 . . . . . . Ballistic Cannon 2 | . 1 1 . . . . . . . . . . . . . . Launcher 2 | . . . . . . . . . . . . . . . . 2 Special Weapon 9 | . . . . . . . 1 . 1 2 2 . . . 1 2 Impact Weapon 3 | . . . . . . . . . . 1 1 . . . 1 . Slashing Weapon 3 | . . . 1 . . 1 . . 1 . . . . . . . Piercing Weapon . | . . . . . . . . . . . . . . . . . Special Melee Weapon 2 | . . . . . . . . 2 . . . . . . . . Unidentified Prototypes 20 | . . 1 . . . 2 . 2 . 4 2 2 1 . 3 3 Parts Lost 56 | . . . . . 3 . . 7 3 6 13 2 . . 8 14 Power 11 | . . . . . . . . 3 . 1 1 2 . . 2 2 Propulsion 21 | . . . . . 3 . . . 2 2 6 . . . 3 5 Utility 15 | . . . . . . . . 2 1 1 4 . . . 2 5 Weapon 9 | . . . . . . . . 2 . 2 2 . . . 1 2 Highest Loss Streak 11 | . . . . . 2 . . 3 2 4 5 2 . . 4 11 To Critical Strikes . | . . . . . . . . . . . . . . . . . Average Slot Usage (%) 88 | . 51 85 100 100 88 93 98 87 95 97 88 76 73 81 85 60 Engine 4 | . . 4 11 11 . 8 7 2 3 4 . 5 . . . . Core 2 | . . . . . 6 . 5 1 3 5 7 4 4 4 3 1 Reactor 1 | . . . . . . . . 4 2 . . . 2 4 3 1 Flight 33 | . 18 44 44 44 36 36 30 33 38 39 30 23 23 29 27 14 Device 10 | . 5 15 22 19 11 9 7 7 6 6 14 12 14 14 21 14 Processor 4 | . 5 . . . . 5 7 4 . 3 4 8 9 9 7 7 Hackware 12 | . . . . 2 11 9 14 12 19 20 21 15 14 14 14 15 Protection 3 | . . . . . . 5 7 6 5 1 . . . . . . Ballistic Gun 5 | . 18 20 15 11 11 9 3 . . 2 . . . . . . Special Weapon 1 | . . . . . . . 3 1 . 4 3 . . . . 1 Slashing Weapon 4 | . . . 7 11 11 9 7 4 3 1 . . . . . . Special Melee Weapon 1 | . . . . . . . . 4 6 . . . . . . . Peak Build Rating 132 | . 14 20 21 22 22 35 42 55 61 77 96 98 106 105 132 120 Average Rating 50 | . 8 17 20 21 17 26 41 47 58 71 82 86 97 99 118 89 On Entrance 48 | . . 14 20 21 22 19 35 42 55 60 71 59 92 99 98 113 Naked Turns 47 | . 47 . . . . . . . . . . . . . . . Heaviest Build 41 | . 7 16 16 15 14 13 19 30 29 31 28 27 34 34 41 40 Greatest Support 43 | 3 8 16 16 16 16 19 19 29 29 37 40 43 35 41 41 29 Greatest Overweight (x) 8 | . . 1 . . 1 . . 1 . . 2 . . 1 1 8 Average Overweight (x) . | . . . . . . . . . . . . . . . . . Largest Inventory Capacity 5 | 5 5 5 5 5 5 5 5 5 5 5 5 5 5 5 5 5 Average Capacity 5 | 5 5 5 5 5 5 5 5 5 5 5 5 5 5 5 5 5 Most Carried 5 | . 5 5 5 5 5 5 5 5 5 5 5 5 4 5 5 5 Average Carried 4 | . 3 4 5 4 4 4 4 4 4 4 4 4 3 4 4 4 Final Capacity 5 | 5 5 5 5 5 5 5 5 5 5 5 5 5 5 5 5 5 Final Carried 5 | . 5 5 5 5 5 5 5 4 4 5 5 3 3 5 5 5 Class Distribution -------------------- 44% | Hacker-Sprinter 31% | Scavenger-Sprinter 13% | Sprinter 6% | Commander-Sprinter Dominant Class ---------------- Sprinter | -10/Materials Sprinter | -9/Materials Sprinter | -9/Mines Sprinter | -9/Exiles Scavenger-Sprinter | -8/Mines Scavenger-Sprinter | -8/Materials Hacker-Sprinter | -7/Factory Hacker-Sprinter | -6/Factory Commander-Sprinter | -6/Extension Hacker-Sprinter | -5/Factory Hacker-Sprinter | -4/Factory Hacker-Sprinter | -4/Armory Hacker-Sprinter | -3/Research Hacker-Sprinter | -3/DSF Hacker-Sprinter | -2/Research Hacker-Sprinter | -2/Quarantine Resources | -11 -10 -9 -9 -9 -8 -8 -7 -6 -6 -5 -4 -4 -3 -3 -2 -2 ----------- Run | Yrd Mat Mat Min Exi Min Mat Fac Fac Ext Fac Fac Arm Res DSF Res Qua Matter Collected 2163 | 200 158 372 18 . 62 113 50 170 149 279 166 . . . 420 6 Remotely . | . . . . . . . . . . . . . . . . . Salvage Created 2929 | . 208 394 . . 81 365 53 181 428 396 408 70 . . 345 . Parts 152 | . 13 28 . . 10 23 7 12 20 18 3 4 . . 14 . Haulers Intercepted 12 | . 1 3 . . . 4 . . . 1 2 . . . 1 . Recyclers Shooed . | . . . . . . . . . . . . . . . . . Parts Field Recycled . | . . . . . . . . . . . . . . . . . Retrieved Matter . | . . . . . . . . . . . . . . . . . Parts Self-Destructed . | . . . . . . . . . . . . . . . . . Prevented . | . . . . . . . . . . . . . . . . . Kills | -11 -10 -9 -9 -9 -8 -8 -7 -6 -6 -5 -4 -4 -3 -3 -2 -2 ------- Run | Yrd Mat Mat Min Exi Min Mat Fac Fac Ext Fac Fac Arm Res DSF Res Qua Combat Hostiles Destroyed 21 | . 1 3 . . 5 . . 2 3 4 . 1 . . 2 . Melee 6 | . . . . . 1 . . 1 1 2 . 1 . . . . Guns 12 | . . 2 . . 4 . . 1 1 2 . . . . 2 . Cannons 3 | . 1 1 . . . . . . 1 . . . . . . . Classes Destroyed 12 | . 5 3 . . 2 . . 1 . . . . . . 1 . Worker 1 | . . . . . . . . . . . . . . . 1 . Builder 4 | . . 2 . . . . . . 2 . . . . . . . Tunneler 2 | . 2 . . . . . . . . . . . . . . . Hauler 12 | . 1 3 . . . 4 . . . 1 2 . . . 1 . Recycler 3 | . 1 1 . . . . . . 1 . . . . . . . Operator 4 | . . 2 . . . 1 . 1 . . . . . . . . Watcher 23 | . 1 1 . . . 5 2 2 2 2 5 . . . 3 . Swarmer 4 | . . . . . 4 . . . . . . . . . . . Grunt 4 | . 1 1 . . . . . . . 2 . . . . . . Sentry 8 | . . 2 . . . . . 1 3 1 . 1 . . . . Hunter 1 | . . . . . 1 . . . . . . . . . . . Programmer 4 | . . . . . . . . 1 . 1 . . . . 2 . Best Kill Streak 4 | . 2 3 . . 4 2 1 1 2 2 3 1 . . 2 . Combat Bots Only 4 | . 1 1 . . 4 . . 1 1 1 . 1 . . 1 . Max Kills in Single Turn 2 | . 1 1 . . 2 1 1 1 2 1 1 1 . . 1 . Gunslinging . | . . . . . . . . . . . . . . . . . Exploded . | . . . . . . . . . . . . . . . . . Melee 1 | . . . . . 1 . . 1 1 1 . 1 . . . . Uniques/NPCs Destroyed . | . . . . . . . . . . . . . . . . . Combat | -11 -10 -9 -9 -9 -8 -8 -7 -6 -6 -5 -4 -4 -3 -3 -2 -2 -------- Run | Yrd Mat Mat Min Exi Min Mat Fac Fac Ext Fac Fac Arm Res DSF Res Qua Hostile Shots Fired 694 | . 2 19 11 . 20 . . 66 43 48 131 33 . 2 41 278 Missed 317 | . 1 6 6 . 11 . . 26 17 26 77 21 . 2 21 103 Damage Taken 6628 | . 11 180 63 . 99 . . 708 278 498 1218 224 . . 606 2743 Core 2156 | . 11 70 13 . 43 . . 109 28 24 347 56 . . 58 1397 Absorbed by Shields 975 | . . . . . . . . . 15 . . . . . . 960 Redirected to Core 133 | . . . . . . . . . . . . . . . . 133 Redirected to Shielding 81 | . . . . . . . . 81 . . . . . . . . Ignored by Resistances 347 | . . . . . . . . . . . . . . . . 347 Regen/Repaired (Parts) 87 | . . . . . . . . . . . 87 . . . . . Core Remaining (%) 89 | 100 95 . . . 68 100 100 . 83 97 . 64 . 100 . . Volleys Fired 143 | . 13 34 1 . 6 4 2 3 25 20 8 . . . 10 17 Largest 2 | . 2 2 2 . 1 1 1 1 1 1 1 . . . 2 1 Hottest 100 | . 46 60 46 . 23 23 5 80 80 63 33 . . . 100 52 Shots Fired 192 | . 22 63 2 . 6 4 2 3 25 20 8 . . . 20 17 Gun 139 | . 18 58 2 . 6 4 . 3 13 9 6 . . . 20 . Cannon 26 | . 4 5 . . . . . . 10 7 . . . . . . Launcher 2 | . . . . . . . . . . . . . . . . 2 Special 25 | . . . . . . . 2 . 2 4 2 . . . . 15 Kinetic 112 | . 22 63 2 . 6 4 . . . 9 6 . . . . . Thermal 52 | . . . . . . . . 3 13 . 1 . . . 20 15 Explosive 2 | . . . . . . . . . . . . . . . . 2 Electromagnetic 17 | . . . . . . . . . 10 7 . . . . . . Robot Hit Streak 12 | . 5 10 . . 6 3 5 7 7 11 12 . . . 4 3 Robot Miss Streak 5 | . 4 5 4 . 3 3 . 1 5 1 5 . . . 3 1 Penetration Max 1 | . . . . . . . . . . 1 . . . . . . Secondary Targets . | . . . . . . . . . . . . . . . . . Shots Hit Robots 222 | . 17 46 . . 9 25 4 18 40 22 15 1 . . 16 9 Core Hits 88 | . 9 22 . . 5 10 1 9 14 10 1 1 . . 4 2 Critical Kills 3 | . . 1 . . . . . . . 1 . 1 . . . . Critical Parts Destroyed 6 | . . . . . . . . . . . 4 . . . 2 . Critical Strikes 16 | . . 3 . . . 2 . 2 . 1 4 1 . . 2 1 Destroy 2 | . . 1 . . . . . . . 1 . . . . . . Blast 2 | . . 2 . . . . . . . . . . . . . . Smash 7 | . . . . . . . . . . . 4 1 . . 2 . Sever 5 | . . . . . . 2 . 2 . . . . . . . 1 Melee Attacks 146 | . . . 10 . 4 34 2 24 24 9 24 9 . . 6 . Impact 39 | . . . . . . . . . . . 24 9 . . 6 . Slashing 87 | . . . 10 . 4 34 2 22 7 8 . . . . . . Piercing . | . . . . . . . . . . . . . . . . . Sneak Attacks 32 | . . . . . . 6 1 . 17 2 4 . . . 2 . Combat Hostiles 5 | . . . . . . . . . 3 2 . . . . . . Follow-up Attacks . | . . . . . . . . . . . . . . . . . Damage Inflicted 6868 | . 235 844 11 . 259 1135 115 611 855 802 1055 45 . . 681 220 Guns 1894 | . 179 647 11 . 124 42 . 63 276 266 27 . . . 259 . Cannons 606 | . 56 197 . . . . . . 205 148 . . . . . . Explosions 107 | . . . . . . . . . . 44 . . . . . 63 Melee 4104 | . . . . . 135 1093 115 548 374 344 1028 45 . . 422 . Ramming 2 | . . . . . . . . . . . . . . . . 2 Kinetic 1549 | . 235 844 11 . 124 42 . . . 266 27 . . . . . Thermal 797 | . . . . . . . . 63 276 44 . . . . 259 155 Explosive 63 | . . . . . . . . . . . . . . . . 63 Electromagnetic 353 | . . . . . . . . . 205 148 . . . . . . Impact 1495 | . . . . . . . . . . . 1028 45 . . 422 . Slashing 2609 | . . . . . 135 1093 115 548 374 344 . . . . . . Piercing . | . . . . . . . . . . . . . . . . . Highest Corruption 13 | . . . . . . . . 12 12 . 6 6 . . . 13 Average Corruption 7 | . . . . . . . . 11 12 . 3 6 . . . 7 Corruption Purged . | . . . . . . . . . . . . . . . . . Corruption Blocked 3 | . . . . . . . . . . . . . . . 3 . Effects 71 | . . . . . . . . 12 25 . 14 14 . . . 6 Message Errors 15 | . . . . . . . . 4 6 . . 3 . . . 2 Matter Fused 22 | . . . . . . . . 2 11 . 2 5 . . . 2 Heat Flow Errors 12 | . . . . . . . . 3 2 . 5 . . . . 2 Energy Discharges 6 | . . . . . . . . 1 . . 2 3 . . . . Parts Fused 1 | . . . . . . . . . 1 . . . . . . . Data Loss (minor) 11 | . . . . . . . . 2 4 . 3 2 . . . . Data Loss (major) 4 | . . . . . . . . . 1 . 2 1 . . . . Overload Shots . | . . . . . . . . . . . . . . . . . Overflow Damage 948 | . . . . . . 125 35 59 27 29 369 . . . 304 . Projectiles 15 | . . . . . . . . . 15 . . . . . . . Explosions . | . . . . . . . . . . . . . . . . . Melee 933 | . . . . . . 125 35 59 12 29 369 . . . 304 . Knockbacks 3 | . . . . . . . . . . . 2 . . . 1 . Impact 3 | . . . . . . . . . . . 2 . . . 1 . Kinetic . | . . . . . . . . . . . . . . . . . Secondary . | . . . . . . . . . . . . . . . . . Self-Inflicted Damage 23 | . . . . . . . . . . 23 . . . . . . Shots 1 | . . . . . . . . . . 1 . . . . . . Rammed 3 | . . . . . . . . . . . . . . . . 3 Targets Rammed 3 | . . . . . . . . . . . . . . . . 3 Kicked . | . . . . . . . . . . . . . . . . . Crushed . | . . . . . . . . . . . . . . . . . Highest Temperature 263 | . 15 25 15 . . . . 220 209 77 231 12 . . 263 130 Average Temperature 53 | . 8 11 8 . . . . 52 92 19 73 3 . . 72 75 Received Heat Transfer 711 | . 6 54 32 . . . . 78 67 180 96 18 . . . 180 Effects 1 | . . . . . . . . . . . . . . . 1 . Energy Bleed 1 | . . . . . . . . . . . . . . . 1 . Siege Activations . | . . . . . . . . . . . . . . . . . Robots Corrupted 8 | . . . . . . . . . . . 4 . . . 4 . Combat Hostiles . | . . . . . . . . . . . . . . . . . Parts Fried 17 | . . . . . . . . . 2 . 8 . . . 7 . Impact Corruptions 16 | . . . . . . . . . . . 10 . . . 6 . Robots Melted . | . . . . . . . . . . . . . . . . . Combat Hostiles . | . . . . . . . . . . . . . . . . . Parts Melted 1 | . . . . . . . . . . . . . . . 1 . Heat Transferred 1464 | . . . . . . . . 125 586 50 . . . . 407 296 Parts Sabotaged 7 | . . . . . . . . . . . . . . . . 7 Parts Stolen . | . . . . . . . . . . . . . . . . . Parts Stripped . | . . . . . . . . . . . . . . . . . Power Chain Reactions 1 | . . . . . . . . . . 1 . . . . . . Alert | -11 -10 -9 -9 -9 -8 -8 -7 -6 -6 -5 -4 -4 -3 -3 -2 -2 ------- Run | Yrd Mat Mat Min Exi Min Mat Fac Fac Ext Fac Fac Arm Res DSF Res Qua Peak Influence 2072 | . 110 392 105 . 110 179 46 139 690 683 804 501 262 196 196 2072 Initial 315 | . . 46 80 . . 11 7 22 9 266 214 315 262 196 110 16 Average 220 | . 70 148 68 . 42 36 27 48 446 465 382 312 262 196 120 1739 Maximum Alert Level 5 | . . 1 . . . . . . 2 2 3 2 1 . . 5 Low Security (%) 66 | 100 100 78 100 . 100 100 100 100 16 . . 10 . 100 100 . Level 1 13 | . . 21 . . . . . . 12 14 57 87 100 . . . Level 2 16 | . . . . . . . . . 70 85 38 1 . . . . Level 3 . | . . . . . . . . . . . 3 . . . . . Level 4 . | . . . . . . . . . . . . . . . . . Level 5 . | . . . . . . . . . . . . . . . . . High Security . | . . . . . . . . . . . . . . . . . Max Security 3 | . . . . . . . . . . . . . . . . 99 Squads Dispatched 47 | . 3 3 . . . 3 . 5 . 11 6 . . . 3 13 Investigation 9 | . . . . . . 1 . 2 . 5 1 . . . . . Extermination 5 | . . . . . . . . 3 . . 1 . . . 1 . Reinforcement 12 | . 3 3 . . . 1 . . . 1 2 . . . 2 . Assault 16 | . . . . . . . . . . 1 2 . . . . 13 Garrison 5 | . . . . . . 1 . . . 4 . . . . . . Intercept . | . . . . . . . . . . . . . . . . . Searches Triggered 1 | . . . . . . . . . . . 1 . . . . . Construction Impeded . | . . . . . . . . . . . . . . . . . Haulers Reinforced 2 | . . . . . . . . . . 1 1 . . . . . Active Scanning Responses . | . . . . . . . . . . . . . . . . . Cargo Convoy Interrupts . | . . . . . . . . . . . . . . . . . Stealth | -11 -10 -9 -9 -9 -8 -8 -7 -6 -6 -5 -4 -4 -3 -3 -2 -2 --------- Run | Yrd Mat Mat Min Exi Min Mat Fac Fac Ext Fac Fac Arm Res DSF Res Qua Distress Signals 14 | . . 2 . . . 3 . . . 1 2 5 . . 1 . Communications Jammed 37 | . . . . . . . . . . . 27 9 . . . 1 Distress Signals 36 | . . . . . . . . . . . 27 9 . . . . Times Spotted 307 | . 5 16 16 . 9 18 1 13 21 19 63 29 . 1 7 89 Peak Tracking Total 40 | . 1 7 7 . 4 5 1 3 3 11 21 20 . 1 3 40 Tactical Retreats 39 | . . 1 3 . 1 5 . 5 1 1 11 3 . . 2 6 Traps | -11 -10 -9 -9 -9 -8 -8 -7 -6 -6 -5 -4 -4 -3 -3 -2 -2 ------- Run | Yrd Mat Mat Min Exi Min Mat Fac Fac Ext Fac Fac Arm Res DSF Res Qua Traps Triggered 16 | . . . . . . 1 . 6 4 1 1 . . . 2 1 Indirectly . | . . . . . . . . . . . . . . . . . Trap Hack Attempts . | . . . . . . . . . . . . . . . . . Triggered . | . . . . . . . . . . . . . . . . . Disarmed . | . . . . . . . . . . . . . . . . . Reprogrammed 5 | . . . . . . . . . 5 . . . . . . . Reused . | . . . . . . . . . . . . . . . . . Traps Extracted . | . . . . . . . . . . . . . . . . . Installed . | . . . . . . . . . . . . . . . . . Triggered . | . . . . . . . . . . . . . . . . . Machines | -11 -10 -9 -9 -9 -8 -8 -7 -6 -6 -5 -4 -4 -3 -3 -2 -2 ---------- Run | Yrd Mat Mat Min Exi Min Mat Fac Fac Ext Fac Fac Arm Res DSF Res Qua Machines Disabled 13 | . . . . . . 1 . . 2 5 2 1 . . . 2 Max in Single Turn 1 | . . . . . . 1 . . 1 . 1 1 . . . 1 Garrison Access 2 | . . . . . . . . . . . 1 . . . 1 . Machines Repaired . | . . . . . . . . . . . . . . . . . Machines Dismantled 1 | . . . . . . . . . . . . . . . . 1 Machines Sabotaged . | . . . . . . . . . . . . . . . . . Overloaded Fab Kills . | . . . . . . . . . . . . . . . . . Hacking | -11 -10 -9 -9 -9 -8 -8 -7 -6 -6 -5 -4 -4 -3 -3 -2 -2 --------- Run | Yrd Mat Mat Min Exi Min Mat Fac Fac Ext Fac Fac Arm Res DSF Res Qua Machines Accessed 68 | . 1 2 . 1 1 6 4 8 12 12 12 2 1 . 6 . Terminals 48 | . 1 2 . . 1 6 3 3 12 6 9 1 1 . 3 . Fabricators 9 | . . . . . . . 1 3 . 3 1 1 . . . . Repair Stations 2 | . . . . . . . . . . . 1 . . . 1 . Recycling Units 3 | . . . . . . . . 1 . . 1 . . . 1 . Scanalyzers 2 | . . . . . . . . 1 . 1 . . . . . . Garrison Access 3 | . . . . . . . . . . 2 . . . . 1 . Total Hacks 140 | . 2 8 . 1 3 13 12 16 22 26 20 7 1 . 9 . Successful 87 | . 1 2 . 1 1 6 4 12 16 15 18 5 1 . 5 . Failed 51 | . 1 6 . . 2 7 8 4 5 11 2 2 . . 3 . Catastrophic 10 | . . 2 . . 1 4 . 1 . 1 . 1 . . . . Database Lockouts 2 | . . . . . . . . . 1 . . . . . 1 . Manual 66 | . 2 8 . 1 2 13 10 3 5 9 11 . . . 2 . Terminals 101 | . 2 8 . . 3 13 10 5 22 14 15 3 1 . 5 . Fabricators 21 | . . . . . . . 2 6 . 7 2 4 . . . . Repair Stations 3 | . . . . . . . . . . . 2 . . . 1 . Recycling Units 3 | . . . . . . . . 1 . . 1 . . . 1 . Scanalyzers 6 | . . . . . . . . 4 . 2 . . . . . . Garrison Access 5 | . . . . . . . . . . 3 . . . . 2 . Terminal Hacks 45 | . 1 2 . 1 1 5 1 2 13 4 10 1 1 . 3 . Record 7 | . . . . . 1 . . 1 . . 2 1 . . 2 . Robot Analysis 13 | . 1 2 . . . 3 1 1 3 . 2 . . . . . Open Door 8 | . . . . . . . . . 7 . . . . . 1 . Open DSF 4 | . . . . . . . . . . . 3 . 1 . . . Branch Access Points 1 | . . . . . . . . . . . 1 . . . . . Emergency Access Points 1 | . . . . . . . . . . . 1 . . . . . Terminal Index 1 | . . . . . . 1 . . . . . . . . . . Scanalyzer Index 1 | . . . . . . 1 . . . . . . . . . . Alert Level 1 | . . . . . . . . . 1 . . . . . . . Unreport Threat 1 | . . . . . . . . . . 1 . . . . . . Locate Traps 1 | . . . . . . . . . 1 . . . . . . . Reprogram Traps 1 | . . . . . . . . . 1 . . . . . . . Transport Status 1 | . . . . . . . . . . 1 . . . . . . Recall Investigation 2 | . . . . . . . . . . 1 1 . . . . . Hauler Manifests 1 | . . . . . . . . . . 1 . . . . . . Derelict Proto ID Bank 1 | . . . . 1 . . . . . . . . . . . . Fabricator Hacks 17 | . . . . . . . 1 5 . 5 2 4 . . . . Network Status 3 | . . . . . . . 1 1 . 1 . . . . . . Load Schematic 7 | . . . . . . . . 2 . 2 1 2 . . . . Build 7 | . . . . . . . . 2 . 2 1 2 . . . . Repair Station Hacks 3 | . . . . . . . . . . . 2 . . . 1 . Scan Component 1 | . . . . . . . . . . . 1 . . . . . Repair 1 | . . . . . . . . . . . 1 . . . . . Refit 1 | . . . . . . . . . . . . . . . 1 . Recycling Unit Hacks 2 | . . . . . . . . 1 . . 1 . . . . . Report Inventory 2 | . . . . . . . . 1 . . 1 . . . . . Scanalyzer 6 | . . . . . . . . 4 . 2 . . . . . . Insert Component 3 | . . . . . . . . 2 . 1 . . . . . . Analyze 3 | . . . . . . . . 2 . 1 . . . . . . Garrison Access Hacks 2 | . . . . . . . . . . 1 . . . . 1 . Seal Access 1 | . . . . . . . . . . . . . . . 1 . Coupler Status 1 | . . . . . . . . . . 1 . . . . . . Unauthorized Hacks 12 | . . . . . . 1 2 . 3 3 3 . . . . . Terminals 10 | . . . . . . 1 2 . 3 1 3 . . . . . Assimilate 7 | . . . . . . . . . 3 1 3 . . . . . Botnet 3 | . . . . . . 1 2 . . . . . . . . . Fabricators . | . . . . . . . . . . . . . . . . . Repair Stations . | . . . . . . . . . . . . . . . . . Recycling Units . | . . . . . . . . . . . . . . . . . Scanalyzers . | . . . . . . . . . . . . . . . . . Garrison Access 2 | . . . . . . . . . . 2 . . . . . . Reprogram 2 | . . . . . . . . . . 2 . . . . . . Data Cores Recovered 1 | . . . . . . . . 1 . . . . . . . . Used 1 | . . . . . . . . 1 . . . . . . . . Hacking Detections 52 | . 1 2 . . 1 5 3 7 7 10 9 1 1 . 5 . Full Trace Events 6 | . . . . . . . . 2 . 3 1 . . . . . Feedback Events . | . . . . . . . . . . . . . . . . . Feedback Blocked . | . . . . . . . . . . . . . . . . . Robot Schematics Acquired . | . . . . . . . . . . . . . . . . . Robots Built . | . . . . . . . . . . . . . . . . . Authchips . | . . . . . . . . . . . . . . . . . Time . | . . . . . . . . . . . . . . . . . Total Robot Build Rating . | . . . . . . . . . . . . . . . . . Part Schematics Acquired 3 | . . . . . . . . 2 . 1 . . . . . . Parts Built 7 | . . . . . . . . 2 . 2 1 2 . . . . Authchips 2 | . . . . . . . . . . . . 2 . . . . Time 522 | . . . . . . . . 174 . 116 116 116 . . . . Total Part Build Rating 21 | . . . . . . . . 6 . 6 3 6 . . . . Parts Repaired 1 | . . . . . . . . . . . 1 . . . . . Time 50 | . . . . . . . . . . . 50 . . . . . Parts Recycled . | . . . . . . . . . . . . . . . . . Recycled Matter . | . . . . . . . . . . . . . . . . . Retrieved Matter . | . . . . . . . . . . . . . . . . . Retrieved Components . | . . . . . . . . . . . . . . . . . Parts Scanalyzed 3 | . . . . . . . . 2 . 1 . . . . . . Part Schematics Acquired 3 | . . . . . . . . 2 . 1 . . . . . . Parts Damaged . | . . . . . . . . . . . . . . . . . Bothacking | -11 -10 -9 -9 -9 -8 -8 -7 -6 -6 -5 -4 -4 -3 -3 -2 -2 ------------ Run | Yrd Mat Mat Min Exi Min Mat Fac Fac Ext Fac Fac Arm Res DSF Res Qua Used RIF Installer . | . . . . . . . . . . . . . . . . . Robots Hacked 1 | . . . . . . . . . . 1 . . . . . . Non-combat 1 | . . . . . . . . . . 1 . . . . . . Combat . | . . . . . . . . . . . . . . . . . Robot Hacks Applied 1 | . . . . . . . . . . 1 . . . . . . parse_system 1 | . . . . . . . . . . 1 . . . . . . Relay Couplers Released 3 | . . . . . . . . . . . 3 . . . . . Machine Destruction 3 | . . . . . . . . . . . 3 . . . . . Fabnet Peak Effective % . | . . . . . . . . . . . . . . . . . Robots Rewired 12 | . . . . . . . 1 . 10 1 . . . . . . Allies Hacked 1 | . . . . . . . . . . 1 . . . . . . Hacks Repelled . | . . . . . . . . . . . . . . . . . Allies | -11 -10 -9 -9 -9 -8 -8 -7 -6 -6 -5 -4 -4 -3 -3 -2 -2 -------- Run | Yrd Mat Mat Min Exi Min Mat Fac Fac Ext Fac Fac Arm Res DSF Res Qua Total Allies 34 | . . . 2 . . . 1 . 22 5 4 . . . . . Largest Group 18 | . . . 2 . . . 1 . 18 18 2 . . . . . Highest-Rated Group 731 | . . . 41 . . . 32 . 731 731 116 . . . . . Highest-Rated Ally 159 | . . . 31 . . . 32 . 159 159 116 . . . . . Total Orders 1 | . . . . . . . 1 . . . . . . . . . STAY 1 | . . . . . . . 1 . . . . . . . . . Ally Attacks 214 | . . . 4 . . . . . 120 85 5 . . . . . Total Damage 5521 | . . . 41 . . . . . 2711 2192 577 . . . . . Kills 44 | . . . 1 . . . . . 17 22 4 . . . . . Allies Corrupted . | . . . . . . . . . . . . . . . . . Allies Melted 1 | . . . . . . . . . . 1 . . . . . . Field Lobotomies 3 | . . . . . . . . . 2 . 1 . . . . . Intel | -11 -10 -9 -9 -9 -8 -8 -7 -6 -6 -5 -4 -4 -3 -3 -2 -2 ------- Run | Yrd Mat Mat Min Exi Min Mat Fac Fac Ext Fac Fac Arm Res DSF Res Qua Robot Analysis Total 13 | . 1 2 . . . 3 1 1 3 . 2 . . . . . Derelict Logs Recovered . | . . . . . . . . . . . . . . . . . Drone Launches 2 | . . . . . . . . . . . . . . . . 2 Drone Recoveries . | . . . . . . . . . . . . . . . . . Exploration | -11 -10 -9 -9 -9 -8 -8 -7 -6 -6 -5 -4 -4 -3 -3 -2 -2 ------------- Run | Yrd Mat Mat Min Exi Min Mat Fac Fac Ext Fac Fac Arm Res DSF Res Qua Turns Passed 8753 | 17 295 401 106 263 612 2094 178 1266 723 647 752 483 16 60 572 268 Spaces Moved 12287 | 26 328 402 241 365 759 1427 465 1713 979 1330 1589 765 45 182 1259 412 Core 133 | 26 106 . . . . . . . . . . . . . . 1 Treads . | . . . . . . . . . . . . . . . . . Legs . | . . . . . . . . . . . . . . . . . Wheels . | . . . . . . . . . . . . . . . . . Hover . | . . . . . . . . . . . . . . . . . Flight 12154 | . 222 402 241 365 759 1427 465 1713 979 1330 1589 765 45 182 1259 411 Fastest Speed 17 | 50 32 26 26 26 26 26 26 20 20 17 17 24 24 21 21 27 Average Speed 24 | 50 37 28 26 26 31 28 26 23 20 18 20 25 24 23 22 30 Slowest Speed 450 | 50 50 112 26 26 115 29 26 93 23 20 172 30 24 97 101 450 Overloaded Moves . | . . . . . . . . . . . . . . . . . Propulsion Burnouts . | . . . . . . . . . . . . . . . . . Robots Hopped 69 | . 1 4 2 . 2 8 2 7 11 10 8 2 . . 4 8 Cave-ins Triggered 1 | . . . . . . . . 1 . . . . . . . . Exploration Rate (%) 45 | 2 35 42 64 77 98 62 15 29 94 31 39 34 1 73 25 47 Regions Visited 16 Branch Regions 6 Pre-discovered Areas . | . . . . . . . . . . . . . . . . . Known Exits Taken 8 | . . . . . . 1 1 1 . 1 1 1 1 . 1 . Unknown Exits Taken 7 | 1 1 1 1 1 1 . . . 1 . . . . . . . Scrap Searched 2 | . . . 1 . 1 . . . . . . . . . . . Spaces Dug 26 | . . . 10 . . 4 . 2 . . 4 6 . . . . Terrain Destroyed 41 | . . 1 10 . . 4 . 2 . 1 4 6 . . . 13 Melee 26 | . . . 10 . . 4 . 2 . . 4 6 . . . . Projectile 2 | . . 1 . . . . . . . 1 . . . . . . AOE 13 | . . . . . . . . . . . . . . . . 13 Terrain Rammed . | . . . . . . . . . . . . . . . . . Walls Destroyed . | . . . . . . . . . . . . . . . . . Machines Disabled . | . . . . . . . . . . . . . . . . . Actions | -11 -10 -9 -9 -9 -8 -8 -7 -6 -6 -5 -4 -4 -3 -3 -2 -2 --------- Run | Yrd Mat Mat Min Exi Min Mat Fac Fac Ext Fac Fac Arm Res DSF Res Qua Total 17502 | 29 475 621 264 532 1119 3059 515 2531 1444 1695 1941 1028 49 197 1504 499 Wait 4555 | 4 113 164 14 165 341 1576 42 713 349 306 297 234 . 6 193 38 Move 12143 | 25 325 393 236 364 754 1411 460 1698 958 1312 1573 760 44 181 1250 399 Hop 59 | . 1 4 2 . 2 7 2 7 9 7 7 2 . . 4 5 Pick Up 73 | . 12 5 . 1 2 7 3 5 5 10 3 4 2 4 7 3 Fast Attach 74 | . 3 7 . . 4 3 . 9 3 7 13 6 . 1 13 5 Attach 50 | . 4 3 . 1 2 2 2 4 4 6 3 6 2 2 5 4 Detach 7 | . . 1 . . 1 . . 1 . . 1 2 . . 1 . Swap 36 | . . . 1 . . 4 1 5 5 7 4 3 . 1 1 4 Drop 79 | . 4 10 . 1 3 11 1 8 4 11 8 2 1 2 9 4 Fire 143 | . 13 34 1 . 6 4 2 3 25 20 8 . . . 10 17 Melee 146 | . . . 10 . 4 34 2 24 24 9 24 9 . . 6 . Ram 3 | . . . . . . . . . . . . . . . . 3 Kick . | . . . . . . . . . . . . . . . . . Crush . | . . . . . . . . . . . . . . . . . Escape Stasis 128 | . . . . . . . . 54 58 . . . . . 5 11 Rewire . | . . . . . . . . . . . . . . . . . Trap . | . . . . . . . . . . . . . . . . . Miscellaneous 6 | . . . . . . . . . . . . . . . . 6 Route ------- -11/Scrapyard -10/Materials -9/Materials -9/Mines (discovered 2 exits: *Mat / *Exi) -9/Exiles -8/Mines (discovered 2 exits: *Mat x2) -8/Materials -7/Factory (discovered 2 exits: *Fac x2) -6/Factory -6/Extension (discovered 3 exits: *Fac x2 / [*Cet]) -5/Factory (discovered 2 exits: *Fac / [*Upp]) -4/Factory (discovered 3 exits: Upp x2 / *Arm) -4/Armory -3/Research -3/DSF -2/Research -2/Quarantine History --------- Turn | Location | Event 9 | -11/Scrapyard | Discovered new exit (range 12) 18 | -11/Scrapyard | Entered Materials 101 | -10/Materials | Discovered new exit (range 16) 313 | -10/Materials | Entered another Materials area 313 | -9/Materials | Evolved 2 slots: Propulsion x2 410 | -9/Materials | Build established: Sprinter 713 | -9/Materials | Discovered new exit (range 6) 714 | -9/Materials | Entered Mines 715 | -9/Mines | Assembled infested the area 720 | -9/Mines | Assisted by a Guerilla fighting off Assembled 810 | -9/Mines | Discovered new exit (range 6) 819 | -9/Mines | Deemed a non-threat by the Exiles lab entrance 819 | -9/Mines | Discovered new exit (range 6) 820 | -9/Mines | Entered Exiles 997 | -9/Exiles | Met 8R-AWN 1001 | -9/Exiles | Met EX-HEX 1013 | -9/Exiles | Met EX-BIN 1016 | -9/Exiles | Aligned with FarCom system 1016 | -9/Exiles | Given EX-Vault access code 1022 | -9/Exiles | Opened EX-Vault 1026 | -9/Exiles | Found Field Lobotomy Kit 1033 | -9/Exiles | Warned to stay clear of 0b10 Research branches 1040 | -9/Exiles | Met EX-DEC 1051 | -9/Exiles | Visited The Gauntlet 1078 | -9/Exiles | Discovered new exit (range 14) 1083 | -9/Exiles | Left Exiles lab with Field Lobotomy Kit 1083 | -9/Exiles | Entered Mines 1151 | -8/Mines | Discovered new exit (range 12) 1618 | -8/Mines | Build established: Scavenger-Sprinter 1692 | -8/Mines | Discovered new exit (range 10) 1695 | -8/Mines | Entered Materials 1695 | -8/Materials | Evolved 2 slots: Utility x2 1820 | -8/Materials | Garrison activated, responded to threat 3771 | -8/Materials | Discovered new exit (range 10) 3773 | -8/Materials | Identified exit to Factory 3789 | -8/Materials | Entered Factory 3789 | -7/Factory | Evolved 2 slots: Power x1, Utility x1 3907 | -7/Factory | Discovered new exit (range 5) 3909 | -7/Factory | Identified exit to Factory 3950 | -7/Factory | Discovered exit to Factory (range 15) 3967 | -7/Factory | Entered another Factory area 3967 | -6/Factory | Evolved 2 slots: Propulsion x2 4034 | -6/Factory | Build established: Hacker-Sprinter 4119 | -6/Factory | Discovered new exit (range 14) 4166 | -6/Factory | Identified exit to Extension 4398 | -6/Factory | Fabricated Imp. VTOL Module (x1) 4529 | -6/Factory | Fabricated Imp. VTOL Module? 4535 | -6/Factory | Assembled infested ambush trap array 4916 | -6/Factory | Crushed by falling debris 4916 | -6/Factory | System corruption reached 10% 4947 | -6/Factory | Lost 3 parts (2u1w) 5233 | -6/Factory | Entered Extension 5241 | -6/Extension | Disrupted transfer network 5258 | -6/Extension | Rescued a captive Derelict 5259 | -6/Extension | Rescued a captive Derelict 5315 | -6/Extension | Rescued a captive Derelict 5315 | -6/Extension | Rescued a captive Derelict 5342 | -6/Extension | Rescued a captive Derelict 5344 | -6/Extension | Central database locked down 5354 | -6/Extension | Rescued A7 5393 | -6/Extension | Rescued a captive Derelict 5432 | -6/Extension | Spotted B-75 Beast 5434 | -6/Extension | Assimilated B-75 Beast with FLK Orb 5437 | -6/Extension | Spotted B-75 Beast 5438 | -6/Extension | Assimilated B-75 Beast with FLK Orb 5444 | -6/Extension | Discovered new exit (range 3) 5453 | -6/Extension | Lost 3 allies 5646 | -6/Extension | Rescued a captive Derelict 5647 | -6/Extension | Rescued a captive Derelict 5652 | -6/Extension | Discovered new exit (range 10) 5653 | -6/Extension | Discovered new exit (range 6) 5832 | -6/Extension | Build established: Commander-Sprinter 5956 | -6/Extension | Entered Factory 5956 | -5/Factory | Accompanied by 18 allies (A7) 5956 | -5/Factory | Evolved 2 slots: Propulsion x1, Utility x1 6046 | -5/Factory | Discovered new exit (range 16) 6088 | -5/Factory | Fabricated Imp. VTOL Module (x1) 6147 | -5/Factory | Found Prototype Launcher 6147 | -5/Factory | Identified Scatter Rocket Array 6155 | -5/Factory | Found Scatter Rocket Array 6210 | -5/Factory | Lost 4 parts (1n1u2w) 6300 | -5/Factory | Fabricated Imp. VTOL Module (x1) 6349 | -5/Factory | Discovered new exit (range 5) 6349 | -5/Factory | Identified exit to Factory 6364 | -5/Factory | Build established: Hacker-Sprinter 6547 | -5/Factory | Garrison activated, responded to threat 6556 | -5/Factory | First assault squad dispatched 6603 | -5/Factory | Entered another Factory area 6603 | -4/Factory | Evolved 2 slots: Utility x2 6616 | -4/Factory | Lost 3 allies 6836 | -4/Factory | Repaired Fission Core 6853 | -4/Factory | First assault squad dispatched 7056 | -4/Factory | Fabricated Imp. VTOL Module? 7076 | -4/Factory | Spotted B-86 Titan 7128 | -4/Factory | Lost 3 parts (1p1u1w) 7166 | -4/Factory | Identified exit to Upper Caves 7166 | -4/Factory | Identified exit to Armory 7303 | -4/Factory | Lost 4 parts (3n1u) 7312 | -4/Factory | Spotted B-86 Titan 7316 | -4/Factory | Assimilated B-86 Titan with FLK Orb 7353 | -4/Factory | Search patrols dispatched 7355 | -4/Factory | Entered Armory 7385 | -4/Armory | Lost 5 parts (2n2u1w) 7523 | -4/Armory | Fabricated Imp. VTOL Module? 7595 | -4/Armory | Fabricated Imp. VTOL Module? 7652 | -4/Armory | Found Prototype Processor 7653 | -4/Armory | Identified Exp. Signal Interpreter 7656 | -4/Armory | Found Prototype Processor 7656 | -4/Armory | Identified Exp. Terrain Scan Processor 7833 | -4/Armory | Spotted B-86 Titan 7837 | -4/Armory | Discovered new exit (range 3) 7838 | -4/Armory | Identified exit to Research 7838 | -4/Armory | Entered Research 7838 | -3/Research | Evolved 2 slots: Power x1, Utility x1 7852 | -3/Research | Identified exit to DSF 7854 | -3/Research | Entered DSF 7860 | -3/DSF | Discovered new exit (range 11) 7862 | -3/DSF | Identified exit to Research 7914 | -3/DSF | Entered Research 7914 | -2/Research | Evolved 2 slots: Utility x2 8024 | -2/Research | Central database locked down 8293 | -2/Research | Lost 4 parts (1p2n1w) 8391 | -2/Research | Found Prototype Device 8391 | -2/Research | Identified Exp. Thermal Shield 8395 | -2/Research | Found Fusion Bomb Launcher 8429 | -2/Research | Found Prototype Device 8429 | -2/Research | Identified Adv. EM Disruption Field 8485 | -2/Research | Discovered new exit (range 9) 8486 | -2/Research | Identified exit to Quarantine 8486 | -2/Research | Entered Quarantine 8487 | -2/Quarantine | Maximum security lockdown engaged 8528 | -2/Quarantine | Found Alien Artifact 8528 | -2/Quarantine | Identified Phase Redirector 8653 | -2/Quarantine | Lost 11 parts (2p4n3u2w) 8714 | -2/Quarantine | System corruption reached 10% 8717 | -2/Quarantine | Found Alien Energy Cannon 8718 | -2/Quarantine | Identified Core Cannon 8725 | -2/Quarantine | Core integrity fell below 50% 8735 | -2/Quarantine | Spotted Executioner 8736 | -2/Quarantine | Scanned by Researcher 8738 | -2/Quarantine | Spotted Striker 8738 | -2/Quarantine | Spotted Striker 8738 | -2/Quarantine | Spotted Investigator 8749 | -2/Quarantine | Core integrity fell below 20% 8754 | -2/Quarantine | Destroyed by G-73 Enforcer with Phase Gun Last Messages --------------- M-36 Artificer stasis bubble strength at 40. Held in stasis. Investigator is analyzing... Striker stasis bubble strength at 155. Striker stasis bubble strength at 152. I-47 Archangel stasis bubble strength at 30. G-73 Enforcer stasis bubble strength at 154. P-80 Master stasis bubble strength at 102. Stasis bubble strength at 144. M-36 Artificer stasis bubble strength at 30. O-16 Technician stasis bubble strength at 160. Striker stasis bubble strength at 147. Striker stasis bubble strength at 144. G-73 Enforcer stasis bubble strength at 154. I-47 Archangel stasis bubble strength at 20. G-73 Enforcer stasis bubble strength at 131. P-80 Master resets M-36 Artificer, system corruption cleaned. P-80 Master stasis bubble strength at 95. Stasis bubble strength at 138. Map ----- +----------------------------------------------------+ | ?????????????????????????????????????????????????? | | ?????????????????????????????????????????????????? | | ?????????????????????????????????????????????????? | | ?????????????????????????????????????????????????? | | ?????????????????????????????????????????????????? | | ?????????????????????????????????????????????????? | | ?????????????????????????????????????????????????? | | ?????????????????????????????????????????????????? | | ?????????????????????????????????????????????????? | | ?????????????????????????????????????????????????? | | ?????????????????????????????????????????????????? | | ????????????????g????????????????????????????????? | | ?????????????????????????????????????????????????? | | ?????????????????????????????????????????????????? | | ?????????????????????????????????????????????????? | | ?????????????????????????????????????????????????? | | ?????????????????????????????????????????????????? | | ?????????????????????????????????????????????????? | | ?????????????????????????????????????????????????? | | ??????????????????????????????#######????????????? | | ??????????????????????????????# #????????????? | | ###??????????###?????########## #????????????? | | #??????????? % ??# ! ;## #????????????? | | #?????????????"""% # =%= ; # ###########??? | | #????????????"""" Kgpmel! ### "# """""" #??? | | #?????????g??"""" g;Ki=@lp %pi "# ""S""" #??? | | #???????? g #g g=g%### "# """ #??? | | #???????????????????# c g!#?#pp T# """ #?## | | #?????????????#########gg###?# "# """ ! ### | | #?????????????? ##gg#???# "# """ ## | | #?????????????? ##g #???# p "#?? ## | | #???????????? ? ##%g#???# #??? # | | #???????????? ##oE#######h##########+# | | +???????????? # p | | #??????????? " + h h # | | #?????????? " " T # g" """" | | #??????????? """ # gT """"" | | #??????????"""!""" # " """""" ##### | | #????????????""" # " """ #???## | | #?????????????? g # #????# # | | #???????????????? # #????# # | | #?????????????????#+## g####### #????# # | | ###############???# #?????# #??### ## | | ## #???# #?????# #??# | | ## """ """ % #??##+###+############+####### = | | ## " " " " #??# ## + | | #? """ """?[ #??# ] """ ## """ """ ### = | | ##?? ??? #??# "T" ?# """ """ #?# | | #####+######+#### " " ## """ """ #?# ## | | + ## #?# #? | +----------------------------------------------------+ Best States ------------- Heat Dissipation 68 Coolant Potential 100 Energy Generation 47 Energy Capacity 535 Matter Stores 300 Matter Capacity 300 Sight Range 20 Terrain Scan Range 16 Terrain Scan Density 10 ECM Strength 1 Jamming Range 14 Cloak Strength 2 Power Amplification 30 Additional Mass Support 12 Corruption Block 15 Armor Coverage 225 Resistance: EM 50 Propulsion Shielding 66 Phase Shifting 15 Evasion (%) 94 Target Analysis 6 Offensive Hacking 44 Defensive Hacking 12 Authchip Count 2 Item Schematics ----------------- Imp. VTOL Module | -6/Factory | Scanalyzed Hacking Suite | -6/Factory | Scanalyzed Lgt. Angular Momentum Engine | -5/Factory | Scanalyzed Robot Schematics ------------------ None Fabricated ------------ Imp. VTOL Module | x1 | -6/Factory Imp. VTOL Module | x1 | -6/Factory Imp. VTOL Module | x1 | -5/Factory Imp. VTOL Module | x1 | -5/Factory Imp. VTOL Module | x1 | -4/Factory Imp. VTOL Module | x1 | -4/Armory | Authchip Imp. VTOL Module | x1 | -4/Armory | Authchip Alien Tech Used ----------------- Phase Redirector Core Cannon Achievements -------------- Alien Tech Ooh, Shiny! Challenges ------------ None Game ------ Seed 1234 Manual? 1 Play Time 02:35:35 Cumulative 45.7 hours Start 2024.10.12 @ 07:27:06 End 2024.10.12 @ 10:26:46 Sessions 2 Manual Loads 0 Difficulty Rogue Special Mode None Game No. 60 Rogue 60 Adventurer 0 Explorer 0 Win Type - Total 1 Types 1/0/0/0/0/0/0/0/0 Lore% 34 Gallery% 40 Achievement% 38 Wizard Run 0 Options --------- Layout 1 ASCII 0 Keyboard 0 Movement Mouse Keybinds 0 Fullscreen 1 Font 32/SmallcapsGlow Map View 50x35 Zoom Use 0% Tactical HUD 0 Map Filters NONE Filters NONE Steam 1 RUN: 38f1052a-26b5-4681-aaf7-eeac7be5a252